fUSD/lending_fUSD_20240616
["ID","MTS","AMOUNT","RATE_DAILY","PERIOD"]
[329645565,1718538707917,-500.0,0.00023013,3]
[329645566,1718538707946,-500.0,0.00023013,3]
[329645567,1718538707974,-500.0,0.00023013,3]
[329645568,1718538708002,-500.0,0.00023013,3]
[329645569,1718538708024,-500.0,0.00023013,3]
[329645570,1718538708040,-659.13,0.00023013,3]
[329645571,1718538708074,-500.0,0.00023013,3]
[329645572,1718538708100,-500.0,0.00023013,3]
[329645573,1718538708112,-500.0,0.00023013,3]
[329645574,1718538708133,-500.0,0.00023013,3]
[329645575,1718538708148,-798.56,0.00023013,3]
[329645576,1718538708167,-500.0,0.00023013,3]
[329645577,1718538708181,-500.0,0.00023013,3]
[329645578,1718538708197,-500.0,0.00023013,3]
[329645579,1718538708209,-1149.79,0.00023013,3]
[329645580,1718538708221,-500.0,0.00023013,3]
[329645581,1718538708265,-500.0,0.00023013,3]
[329645582,1718538708320,-1048.66,0.00023013,3]
[329645583,1718538708346,-500.0,0.00023013,3]
[329645584,1718538708358,-500.0,0.00023013,3]
[329645585,1718538708378,-500.0,0.00023013,3]
[329645586,1718538708396,-500.0,0.00023013,3]
[329645587,1718538708432,-500.0,0.00023013,3]
[329645588,1718538708445,-227.2,0.00023013,3]
[329645589,1718538708477,-500.0,0.00023013,3]
[329645590,1718538708520,-500.0,0.00023013,3]
[329645591,1718538708549,-500.0,0.00023013,3]
[329645592,1718538708562,-500.0,0.00023013,3]
[329645593,1718538708596,-827.65,0.00023013,3]
[329645594,1718538708627,-500.0,0.00023013,3]
[329645595,1718538708648,-580.94,0.00023013,3]
[329645596,1718538708706,-500.0,0.00023013,3]
[329645597,1718538708725,-260.19319326,0.00023013,3]
[329645598,1718538708742,-500.0,0.00023013,3]
[329645599,1718538708758,-3617.46,0.00023013,3]
[329645600,1718538708771,-500.0,0.00023013,3]
[329645601,1718538708784,-500.0,0.00023013,3]
[329645602,1718538708797,-593.03659458,0.00023013,3]
[329645603,1718538708812,-910.63,0.00023013,3]
[329645604,1718538708824,-500.0,0.00023013,3]
[329645605,1718538708845,-500.0,0.00023013,3]
[329645606,1718538708857,-500.0,0.00023013,3]
[329645607,1718538708877,-271.63177067,0.00023013,3]
[329645608,1718538708891,-7927.95,0.00023013,3]
[329645609,1718538708911,-500.0,0.00023013,3]
[329645610,1718538708934,-500.0,0.00023013,3]
[329645611,1718538708947,-500.0,0.00023013,3]
[329645612,1718538708982,-524.41,0.00023013,3]
[329645613,1718538709000,-4256.0,0.00023013,3]
[329645614,1718538709033,-500.0,0.00023013,3]
[329645615,1718538709044,-500.0,0.00023013,3]
[329645616,1718538709060,-500.0,0.00023013,3]
[329645617,1718538709083,-500.0,0.00023013,3]
[329645618,1718538709096,-500.0,0.00023013,3]
[329645619,1718538709110,-500.0,0.00023013,3]
[329645620,1718538709125,-1338.61,0.00023013,3]
[329645621,1718538709146,-500.0,0.00023013,3]
[329645622,1718538709168,-500.0,0.00023013,3]
[329645623,1718538709192,-500.0,0.00023013,3]
[329645624,1718538709206,-1102.86,0.00023013,3]
[329645625,1718538709228,-500.0,0.00023013,3]
[329645626,1718538709288,-500.0,0.00023013,3]
[329645627,1718538709298,-500.0,0.00023013,3]
[329645628,1718538709316,-500.0,0.00023013,3]
[329645629,1718538709343,-500.0,0.00023013,3]
[329645630,1718538709357,-1168.34,0.00023013,3]
[329645631,1718538709388,-500.0,0.00023013,3]
[329645632,1718538709414,-2020.94,0.00023013,3]
[329645633,1718538709442,-1805.75,0.00023013,3]
[329645634,1718538709465,-511.07301907,0.00023013,3]
[329645635,1718538709490,-16716.72,0.00023013,3]
[329645636,1718538709508,-1241.14,0.00023013,3]
[329645637,1718538709532,-500.0,0.00023013,3]
[329645638,1718538709559,-500.0,0.00023013,3]
[329645639,1718538709571,-2124.83,0.00023013,3]
[329645640,1718538709583,-500.0,0.00023013,3]
[329645641,1718538709607,-1183.03,0.00023013,3]
[329645642,1718538709626,-8693.33,0.00023013,3]
[329645643,1718538709656,-4851.41,0.00023013,3]
[329645644,1718538709672,-500.0,0.00023013,3]
[329645645,1718538709709,-2372.0,0.00023013,3]
[329645646,1718538709720,-500.0,0.00023013,3]
[329645647,1718538709737,-773.0,0.00023013,3]
[329645648,1718538709764,-500.0,0.00023013,3]
[329645649,1718538709783,-523.41378475,0.00023013,3]
[329645650,1718538709808,-500.0,0.00023013,3]
[329645651,1718538709833,-1272.31,0.00023013,3]
[329645652,1718538709846,-1816.2,0.00023013,3]
[329645653,1718538709864,-531.05372653,0.00023013,3]
[329645654,1718538709890,-500.0,0.00023013,3]
[329645655,1718538709906,-500.0,0.00023013,3]
[329645656,1718538709922,-500.0,0.00023013,3]
[329645657,1718538709933,-500.0,0.00023013,3]
[329645658,1718538709945,-500.0,0.00023013,3]
[329645659,1718538709969,-2506.46,0.00023013,3]
[329645660,1718538709991,-857.28,0.00023013,3]
[329645661,1718538710010,-500.0,0.00023013,3]
[329645662,1718538710032,-500.0,0.00023013,3]
[329645663,1718538710044,-500.0,0.00023013,3]
[329645664,1718538710063,-510.22,0.00023013,3]
[329645665,1718538710079,-542.84,0.00023013,3]
[329645666,1718538710111,-550.33,0.00023013,3]
[329645667,1718538710152,-538.1,0.00023013,3]
[329645668,1718538710200,-1956.96,0.00023013,3]
[329645669,1718538710218,-3926.03,0.00023013,3]
[329645670,1718538710237,-740.8,0.00023013,3]
[329645671,1718538710256,-617.70450272,0.00023013,3]
[329645672,1718538710277,-962.96,0.00023013,3]
[329645673,1718538710300,-5131.49,0.00023013,3]
[329645674,1718538710354,-500.0,0.00023013,3]
[329645675,1718538710428,-500.0,0.00023013,3]
[329645676,1718538710444,-500.0,0.00023013,3]
[329645677,1718538710467,-500.0,0.00023013,3]
[329645678,1718538710485,-228.8,0.00023013,3]
[329645679,1718538710512,-1515.06,0.00023013,3]
[329645680,1718538710528,-933.52,0.00023013,3]
[329645681,1718538710551,-605.14,0.00023013,3]
[329645682,1718538710575,-683.72,0.00023013,3]
[329645683,1718538710603,-587.53177719,0.00023013,3]
[329645684,1718538710626,-1580.64,0.00023013,3]
[329645685,1718538710658,-1085.84,0.00023013,3]
[329645686,1718538710673,-1501.56,0.00023013,3]
[329645687,1718538710688,-500.0,0.00023013,3]
[329645688,1718538710710,-7059.05,0.00023013,3]
[329645689,1718538710752,-1038.4,0.00023013,3]
[329645690,1718538710764,-500.0,0.00023013,3]
[329645691,1718538710782,-500.0,0.00023013,3]
[329645692,1718538710794,-500.0,0.00023013,3]
[329645693,1718538710820,-6081.58,0.00023013,3]
[329645694,1718538710832,-500.0,0.00023013,3]
[329645695,1718538710849,-500.0,0.00023013,3]
[329645696,1718538710863,-500.0,0.00023013,3]
[329645697,1718538710874,-500.0,0.00023013,3]
[329645698,1718538710885,-3600.18,0.00023013,3]
[329645699,1718538710895,-3713.02,0.00023013,3]
[329645700,1718538710916,-1899.16,0.00023013,3]
[329645701,1718538710944,-3745.09,0.00023013,3]
[329645702,1718538710954,-500.0,0.00023013,3]
[329645703,1718538710965,-739.36,0.00023013,3]
[329645704,1718538710977,-2331.02,0.00023013,3]
[329645705,1718538710989,-954.22,0.00023013,3]
[329645706,1718538711004,-2038.78,0.00023013,3]
[329645707,1718538711019,-3357.07,0.00023013,3]
[329645708,1718538711031,-645.61,0.00023013,3]
[329645709,1718538711043,-151.75660723,0.00023013,3]
[329645710,1718538711062,-3148.47,0.00023013,3]
[329645711,1718538711091,-996.94,0.00023013,3]
[329645712,1718538711138,-500.0,0.00023013,3]
[329645713,1718538711165,-200.0,0.00023013,3]
[329645714,1718538711182,-500.0,0.00023013,3]
[329645715,1718538711201,-728.59,0.00023013,3]
[329645716,1718538711216,-654.77,0.00023013,3]
[329645717,1718538711240,-500.0,0.00023013,3]
[329645718,1718538711315,-500.0,0.00023013,3]
[329645719,1718538711327,-1948.76,0.00023013,3]
[329645720,1718538711343,-962.07,0.00023013,3]
[329645721,1718538711374,-2105.14,0.00023013,3]
[329645722,1718538711388,-1292.48,0.00023013,3]
[329645723,1718538711417,-500.0,0.00023013,3]
[329645724,1718538711432,-500.0,0.00023013,3]
[329645725,1718538711474,-500.0,0.00023013,3]
[329645726,1718538711495,-500.0,0.00023013,3]
[329645727,1718538711576,-625.93,0.00023013,3]
[329645728,1718538711595,-334.69856748,0.00023013,3]
[329645729,1718538711620,-500.0,0.00023013,3]
[329645730,1718538711639,-1856.52,0.00023013,3]
[329645731,1718538711692,-1002.46,0.00023013,3]
[329645732,1718538711716,-1386.03,0.00023013,3]
[329645733,1718538711731,-500.0,0.00023013,3]
[329645734,1718538711749,-779.24,0.00023013,3]
[329645735,1718538711765,-500.0,0.00023013,3]
[329645736,1718538711808,-500.0,0.00023013,3]
[329645737,1718538711822,-1126.05,0.00023013,3]
[329645738,1718538711837,-2255.51,0.00023013,3]
[329645739,1718538711859,-500.0,0.00023013,3]
[329645740,1718538711887,-500.0,0.00023013,3]
[329645741,1718538711930,-500.0,0.00023013,3]
[329645742,1718538711943,-871.1,0.00023013,3]
[329645743,1718538711959,-3285.08,0.00023013,3]
[329645744,1718538711981,-500.0,0.00023013,3]
[329645745,1718538711995,-4311.37,0.00023013,3]
[329645746,1718538712006,-755.82,0.00023013,3]
[329645747,1718538712017,-1618.36,0.00023013,3]
[329645748,1718538712041,-500.0,0.00023013,3]
[329645749,1718538712060,-500.0,0.00023013,3]
[329645750,1718538712072,-1768.97,0.00023013,3]
[329645751,1718538712096,-1055.75,0.00023013,3]
[329645752,1718538712112,-3359.28,0.00023013,3]
[329645753,1718538712142,-1535.59,0.00023013,3]
[329645754,1718538712165,-2155.72,0.00023013,3]
[329645755,1718538712189,-4282.88,0.00023013,3]
[329645756,1718538712204,-512.52,0.00023013,3]
[329645757,1718538712229,-527.63,0.00023013,3]
[329645758,1718538712246,-2030.88,0.00023013,3]
[329645759,1718538712265,-1367.9,0.00023013,3]
[329645760,1718538712279,-617.75,0.00023013,3]
[329645761,1718538712293,-500.0,0.00023013,3]
[329645762,1718538712337,-525.99,0.00023013,3]
[329645763,1718538712358,-500.0,0.00023013,3]
[329645764,1718538712375,-500.0,0.00023013,3]
[329645765,1718538712400,-596.9,0.00023013,3]
[329645766,1718538712425,-1369.58,0.00023013,3]
[329645767,1718538712458,-2396.45,0.00023013,3]
[329645768,1718538712471,-1410.09,0.00023013,3]
[329645769,1718538712503,-500.0,0.00023013,3]
[329645770,1718538712528,-552.52,0.00023013,3]
[329645771,1718538712540,-2697.85,0.00023013,3]
[329645772,1718538712563,-1084.91,0.00023013,3]
[329645773,1718538712578,-500.0,0.00023013,3]
[329645774,1718538712590,-1718.15,0.00023013,3]
[329645775,1718538712601,-500.0,0.00023013,3]
[329645776,1718538712614,-500.0,0.00023013,3]
[329645777,1718538712628,-500.0,0.00023013,3]
[329645778,1718538712644,-1280.9,0.00023013,3]
[329645779,1718538712657,-500.0,0.00023013,3]
[329645780,1718538712670,-1550.83,0.00023013,3]
[329645781,1718538712683,-1300.26,0.00023013,3]
[329645782,1718538712697,-1551.39,0.00023013,3]
[329645783,1718538712709,-930.99,0.00023013,3]
[329645784,1718538712724,-500.0,0.00023013,3]
[329645785,1718538712737,-500.0,0.00023013,3]
[329645786,1718538712754,-500.0,0.00023013,3]
[329645787,1718538712766,-500.0,0.00023013,3]
[329645788,1718538712777,-500.0,0.00023013,3]
[329645789,1718538712788,-2227.01,0.00023013,3]
[329645790,1718538712799,-500.0,0.00023013,3]
[329645791,1718538712815,-517.9,0.00023013,3]
[329645792,1718538712827,-500.0,0.00023013,3]
[329645793,1718538712839,-500.0,0.00023013,3]
[329645794,1718538712851,-500.0,0.00023013,3]
[329645795,1718538712862,-500.0,0.00023013,3]
[329645796,1718538712872,-762.39,0.00023013,3]
[329645797,1718538712883,-500.0,0.00023013,3]
[329645798,1718538712894,-500.0,0.00023013,3]
[329645799,1718538712909,-1044.11,0.00023013,3]
[329645800,1718538712923,-500.0,0.00023013,3]
[329645801,1718538712934,-500.0,0.00023013,3]
[329645802,1718538712944,-511.74397823,0.00023013,3]
[329645803,1718538712973,-500.0,0.00023013,3]
[329645804,1718538712991,-721.44,0.00023013,3]
[329645805,1718538713004,-500.0,0.00023013,3]
[329645806,1718538713015,-500.0,0.00023013,3]
[329645807,1718538713033,-981.85,0.00023013,3]
[329645808,1718538713044,-500.0,0.00023013,3]
[329645809,1718538713073,-1486.62,0.00023013,3]
[329645810,1718538713093,-151.0,0.00023046,2]
[329645811,1718538713111,-3647.26935696,0.00023082,2]
[329645812,1718538713149,-151.0,0.00023208,2]
[329645813,1718538713166,-500.0,0.00023287,3]
[329645814,1718538713183,-500.0,0.00023287,3]
[329645815,1718538713197,-500.0,0.00023287,3]
[329645816,1718538713208,-500.0,0.00023287,3]
[329645817,1718538713235,-500.0,0.00023287,3]
[329645818,1718538713249,-506.02166508,0.00023287,3]
[329645819,1718538713261,-500.0,0.00023287,3]
[329645820,1718538713272,-500.0,0.00023287,3]
[329645821,1718538713308,-500.0,0.00023287,3]
[329645822,1718538713320,-500.0,0.00023287,3]
[329645823,1718538713350,-500.0,0.00023287,3]
[329645824,1718538713372,-500.0,0.00023287,3]
[329645825,1718538713390,-572.54159655,0.00023287,3]
[329645826,1718538713416,-500.0,0.00023287,3]
[329645827,1718538713441,-500.0,0.00023287,3]
[329645828,1718538713504,-500.0,0.00023287,3]
[329645829,1718538713560,-633.24968143,0.00023287,3]
[329645830,1718538713590,-500.0,0.00023287,3]
[329645831,1718538713628,-500.0,0.00023287,3]
[329645832,1718538713645,-500.0,0.00023287,3]
[329645833,1718538713662,-667.84,0.00023287,3]
[329645834,1718538713677,-500.0,0.00023287,3]
[329645835,1718538713689,-500.0,0.00023287,3]
[329645836,1718538713708,-500.0,0.00023287,3]
[329645837,1718538713720,-500.0,0.00023287,3]
[329645838,1718538713745,-500.0,0.00023287,3]
[329645839,1718538713756,-500.0,0.00023287,3]
[329645840,1718538713768,-500.0,0.00023287,3]
[329645841,1718538713801,-500.0,0.00023287,3]
[329645842,1718538713813,-500.0,0.00023287,3]
[329645843,1718538713837,-500.0,0.00023287,3]
[329645844,1718538713892,-625.0,0.00023287,3]
[329645845,1718538713906,-500.0,0.00023287,3]
[329645846,1718538713924,-6613.19,0.00023287,3]
[329645847,1718538713956,-500.0,0.00023287,3]
[329645848,1718538713971,-626.88,0.00023287,3]
[329645849,1718538713987,-500.0,0.00023287,3]
[329645850,1718538714002,-500.0,0.00023287,3]
[329645851,1718538714019,-1006.45,0.00023287,3]
[329645852,1718538714034,-625.67,0.00023287,3]
[329645853,1718538714046,-500.0,0.00023287,3]
[329645854,1718538714057,-500.0,0.00023287,3]
[329645855,1718538714083,-500.0,0.00023287,3]
[329645856,1718538714095,-500.0,0.00023287,3]
[329645857,1718538714107,-643.81,0.00023287,3]
[329645858,1718538714118,-500.0,0.00023287,3]
[329645859,1718538714138,-1016.21,0.00023287,3]
[329645860,1718538714152,-500.0,0.00023287,3]
[329645861,1718538714170,-500.0,0.00023287,3]
[329645862,1718538714190,-500.0,0.00023287,3]
[329645863,1718538714206,-849.46,0.00023287,3]
[329645864,1718538714222,-588.93,0.00023287,3]
[329645865,1718538714242,-686.57,0.00023287,3]
[329645866,1718538714282,-500.0,0.00023287,3]
[329645867,1718538714313,-500.0,0.00023287,3]
[329645868,1718538714333,-500.0,0.00023287,3]
[329645869,1718538714353,-568.35,0.00023287,3]
[329645870,1718538714368,-503.85,0.00023287,3]
[329645871,1718538714404,-500.0,0.00023287,3]
[329645872,1718538714420,-902.54,0.00023287,3]
[329645873,1718538714433,-500.0,0.00023287,3]
[329645874,1718538714467,-500.0,0.00023287,3]
[329645875,1718538714480,-500.0,0.00023287,3]
[329645876,1718538714491,-500.0,0.00023287,3]
[329645877,1718538714503,-500.0,0.00023287,3]
[329645878,1718538714522,-500.0,0.00023287,3]
[329645879,1718538714534,-500.0,0.00023287,3]
[329645880,1718538714548,-500.0,0.00023287,3]
[329645881,1718538714560,-500.0,0.00023287,3]
[329645882,1718538714575,-316.92522012,0.00023287,3]
[329645883,1718538714590,-833.07,0.00023287,3]
[329645884,1718538714603,-500.0,0.00023287,3]
[329645885,1718538714637,-500.0,0.00023287,3]
[329645886,1718538714657,-511.59,0.00023287,3]
[329645887,1718538714673,-1114.37,0.00023287,3]
[329645888,1718538714685,-500.0,0.00023287,3]
[329645889,1718538714696,-867.65,0.00023287,3]
[329645890,1718538714709,-500.0,0.00023287,3]
[329645891,1718538714722,-564.01,0.00023287,3]
[329645892,1718538714740,-500.0,0.00023287,3]
[329645893,1718538714757,-507.91,0.00023287,3]
[329645894,1718538714768,-498.94620376,0.00023287,3]
[329645895,1718538714780,-500.0,0.00023287,3]
[329645896,1718538714792,-500.0,0.00023287,3]
[329645897,1718538714809,-531.33,0.00023287,3]
[329645898,1718538714822,-500.0,0.00023287,3]
[329645899,1718538714869,-536.50707605,0.00023287,3]
[329645900,1718538714895,-500.0,0.00023287,3]
[329645901,1718538714920,-500.0,0.00023287,3]
[329645902,1718538714935,-500.0,0.00023287,3]
[329645903,1718538714983,-618.4,0.00023287,3]
[329645904,1718538714997,-561.59,0.00023287,3]
[329645905,1718538715011,-500.0,0.00023287,3]
[329645906,1718538715023,-551.81,0.00023287,3]
[329645907,1718538715049,-564.77246589,0.00023287,3]
[329645908,1718538715065,-527.68,0.00023287,3]
[329645909,1718538715078,-500.0,0.00023287,3]
[329645910,1718538715090,-540.61,0.00023287,3]
[329645911,1718538715104,-827.67,0.00023287,3]
[329645912,1718538715116,-500.0,0.00023287,3]
[329645913,1718538715128,-509.14534006,0.00023287,3]
[329645914,1718538715146,-500.0,0.00023287,3]
[329645915,1718538715158,-500.0,0.00023287,3]
[329645916,1718538715180,-500.0,0.00023287,3]
[329645917,1718538715193,-203.22,0.00023287,3]
[329645918,1718538715225,-550.35928259,0.00023287,3]
[329645919,1718538715242,-1352.2,0.00023287,3]
[329645920,1718538715272,-500.0,0.00023287,3]
[329645921,1718538715321,-500.0,0.00023287,3]
[329645922,1718538715360,-500.0,0.00023287,3]
[329645923,1718538715376,-500.0,0.00023287,3]
[329645924,1718538715424,-500.0,0.00023287,3]
[329645925,1718538715480,-503.17,0.00023287,3]
[329645926,1718538715505,-500.0,0.00023287,3]
[329645927,1718538715532,-962.95,0.00023287,3]
[329645928,1718538715568,-500.0,0.00023287,3]
[329645929,1718538715589,-500.0,0.00023287,3]
[329645930,1718538715604,-500.0,0.00023287,3]
[329645931,1718538715627,-500.0,0.00023287,3]
[329645932,1718538715657,-500.0,0.00023287,3]
[329645933,1718538715674,-659.13,0.00023287,3]
[329645934,1718538715689,-500.0,0.00023287,3]
[329645935,1718538715703,-543.48,0.00023287,3]
[329645936,1718538715715,-500.0,0.00023287,3]
[329645937,1718538715731,-798.56,0.00023287,3]
[329645938,1718538715760,-500.0,0.00023287,3]
[329645939,1718538715788,-1149.79,0.00023287,3]
[329645940,1718538715815,-1048.66,0.00023287,3]
[329645941,1718538715833,-215.12439765,0.00023287,3]
[329645942,1718538715868,-500.0,0.00023287,3]
[329645943,1718538715904,-500.0,0.00023287,3]
[329645944,1718538715930,-500.0,0.00023287,3]
[329645945,1718538715967,-263.00071979,0.00023287,3]
[329645946,1718538715992,-500.0,0.00023287,3]
[329645947,1718538716027,-500.0,0.00023287,3]
[329645948,1718538716048,-827.65,0.00023287,3]
[329645949,1718538716066,-500.0,0.00023287,3]
[329645950,1718538716087,-500.0,0.00023287,3]
[329645951,1718538716101,-500.0,0.00023287,3]
[329645952,1718538716115,-3617.46,0.00023287,3]
[329645953,1718538716127,-500.0,0.00023287,3]
[329645954,1718538716160,-910.63,0.00023287,3]
[329645955,1718538716179,-500.0,0.00023287,3]
[329645956,1718538716194,-500.0,0.00023287,3]
[329645957,1718538716207,-503.36,0.00023287,3]
[329645958,1718538716221,-7927.95,0.00023287,3]
[329645959,1718538716234,-500.0,0.00023287,3]
[329645960,1718538716246,-500.0,0.00023287,3]
[329645961,1718538716260,-500.0,0.00023287,3]
[329645962,1718538716283,-524.41,0.00023287,3]
[329645963,1718538716315,-4256.0,0.00023287,3]
[329645964,1718538716347,-500.0,0.00023287,3]
[329645965,1718538716362,-500.0,0.00023287,3]
[329645966,1718538716376,-500.0,0.00023287,3]
[329645967,1718538716394,-500.0,0.00023287,3]
[329645968,1718538716421,-500.0,0.00023287,3]
[329645969,1718538716438,-1338.61,0.00023287,3]
[329645970,1718538716456,-500.0,0.00023287,3]
[329645971,1718538716481,-500.0,0.00023287,3]
[329645972,1718538716494,-1102.86,0.00023287,3]
[329645973,1718538716508,-500.0,0.00023287,3]
[329645974,1718538716524,-517.46596701,0.00023287,3]
[329645975,1718538716544,-500.0,0.00023287,3]
[329645976,1718538716558,-500.0,0.00023287,3]
[329645977,1718538716570,-500.0,0.00023287,3]
[329645978,1718538716582,-1168.34,0.00023287,3]
[329645979,1718538716596,-500.0,0.00023287,3]
[329645980,1718538716612,-2020.94,0.00023287,3]
[329645981,1718538716625,-1805.75,0.00023287,3]
[329645982,1718538716636,-16716.72,0.00023287,3]
[329645983,1718538716652,-1241.14,0.00023287,3]
[329645984,1718538716677,-500.0,0.00023287,3]
[329645985,1718538716706,-500.0,0.00023287,3]
[329645986,1718538716723,-2124.83,0.00023287,3]
[329645987,1718538716737,-500.0,0.00023287,3]
[329645988,1718538716750,-1183.03,0.00023287,3]
[329645989,1718538716762,-8693.33,0.00023287,3]
[329645990,1718538716787,-4851.41,0.00023287,3]
[329645991,1718538716816,-500.0,0.00023287,3]
[329645992,1718538716837,-500.0,0.00023287,3]
[329645993,1718538716856,-2372.0,0.00023287,3]
[329645994,1718538716873,-773.0,0.00023287,3]
[329645995,1718538716884,-500.0,0.00023287,3]
[329645996,1718538716897,-1272.31,0.00023287,3]
[329645997,1718538716909,-1816.2,0.00023287,3]
[329645998,1718538716922,-500.0,0.00023287,3]
[329645999,1718538716933,-500.0,0.00023287,3]
[329646000,1718538716945,-500.0,0.00023287,3]
[329646001,1718538716957,-500.0,0.00023287,3]
[329646002,1718538716970,-349.74,0.00023287,3]
[329646003,1718538716981,-2506.46,0.00023287,3]
[329646004,1718538716994,-857.28,0.00023287,3]
[329646005,1718538717005,-626.77,0.00023287,3]
[329646006,1718538717033,-500.0,0.00023287,3]
[329646007,1718538717045,-500.0,0.00023287,3]
[329646008,1718538717057,-510.22,0.00023287,3]
[329646009,1718538717073,-542.84,0.00023287,3]
[329646010,1718538717084,-550.33,0.00023287,3]
[329646011,1718538717095,-1956.96,0.00023287,3]
[329646012,1718538717106,-3926.03,0.00023287,3]
[329646013,1718538717119,-740.8,0.00023287,3]
[329646014,1718538717139,-962.96,0.00023287,3]
[329646015,1718538717153,-5131.49,0.00023287,3]
[329646016,1718538717170,-500.0,0.00023287,3]
[329646017,1718538717188,-500.0,0.00023287,3]
[329646018,1718538717208,-500.0,0.00023287,3]
[329646019,1718538717228,-1515.06,0.00023287,3]
[329646020,1718538717252,-933.52,0.00023287,3]
[329646021,1718538717288,-605.14,0.00023287,3]
[329646022,1718538717323,-683.72,0.00023287,3]
[329646023,1718538717343,-1580.64,0.00023287,3]
[329646024,1718538717355,-1085.84,0.00023287,3]
[329646025,1718538717371,-1501.56,0.00023287,3]
[329646026,1718538717386,-500.0,0.00023287,3]
[329646027,1718538717411,-7059.05,0.00023287,3]
[329646028,1718538717425,-1038.4,0.00023287,3]
[329646029,1718538717440,-521.32995839,0.00023287,3]
[329646030,1718538717452,-500.0,0.00023287,3]
[329646031,1718538717464,-512.12047079,0.00023287,3]
[329646032,1718538717479,-6081.58,0.00023287,3]
[329646033,1718538717495,-500.0,0.00023287,3]
[329646034,1718538717505,-500.0,0.00023287,3]
[329646035,1718538717523,-500.0,0.00023287,3]
[329646036,1718538717545,-3600.18,0.00023287,3]
[329646037,1718538717568,-500.0,0.00023287,3]
[329646038,1718538717579,-3713.02,0.00023287,3]
[329646039,1718538717601,-1899.16,0.00023287,3]
[329646040,1718538717618,-3745.09,0.00023287,3]
[329646041,1718538717632,-500.0,0.00023287,3]
[329646042,1718538717654,-739.36,0.00023287,3]
[329646043,1718538717682,-2331.02,0.00023287,3]
[329646044,1718538717705,-954.22,0.00023287,3]
[329646045,1718538717717,-2038.78,0.00023287,3]
[329646046,1718538717739,-3357.07,0.00023287,3]
[329646047,1718538717755,-645.61,0.00023287,3]
[329646048,1718538717785,-3148.47,0.00023287,3]
[329646049,1718538717819,-996.94,0.00023287,3]
[329646050,1718538717836,-500.0,0.00023287,3]
[329646051,1718538717861,-200.0,0.00023287,3]
[329646052,1718538717882,-500.0,0.00023287,3]
[329646053,1718538718077,-728.59,0.00023287,3]
[329646054,1718538718104,-654.77,0.00023287,3]
[329646055,1718538718120,-500.0,0.00023287,3]
[329646056,1718538718136,-505.63568718,0.00023287,3]
[329646057,1718538718150,-1948.76,0.00023287,3]
[329646058,1718538718170,-962.07,0.00023287,3]
[329646059,1718538718186,-2105.14,0.00023287,3]
[329646060,1718538718201,-1292.48,0.00023287,3]
[329646061,1718538718237,-443.04809312,0.00023287,3]
[329646062,1718538718255,-500.0,0.00023287,3]
[329646063,1718538718269,-447.60160399,0.00023287,3]
[329646064,1718538718295,-173.62117879,0.00023287,3]